bitfinex/quotes_BTCUSD_20250616
["timestamp","ask_amount","ask_price","bid_price","bid_amount"]
[1750060064898,1.06076215,107260.0,107250.0,0.28746123]
[1750060065085,1.06079159,107260.0,107250.0,0.28746123]
[1750060065332,1.03842939,107260.0,107250.0,0.44214123]
[1750060065555,0.99738939,107260.0,107250.0,0.44214123]
[1750060065774,1.03822939,107260.0,107250.0,0.44214123]
[1750060069846,1.06991992,107260.0,107250.0,0.44214123]
[1750060070523,1.06059748,107260.0,107250.0,0.44214123]
[1750060070737,0.67784809,107260.0,107250.0,0.44214123]
[1750060070940,1.06059748,107260.0,107250.0,0.44214123]
[1750060071161,1.06991992,107260.0,107250.0,0.44214123]
[1750060071365,1.06059748,107260.0,107250.0,0.44214123]
[1750060071710,1.06059748,107260.0,107250.0,0.41114123]
[1750060071923,1.06992001,107260.0,107250.0,0.37854123]
[1750060072140,1.06059748,107260.0,107250.0,0.40924123]
[1750060072610,1.06059748,107260.0,107250.0,0.43930123]
[1750060072824,1.06060196,107260.0,107250.0,0.43930123]
[1750060073274,1.06992431,107260.0,107250.0,0.43930123]
[1750060073493,1.06060196,107260.0,107250.0,0.43930123]
[1750060074479,1.07924728,107260.0,107250.0,0.43930123]
[1750060075857,1.06992449,107260.0,107250.0,0.43930123]
[1750060076071,1.07924719,107260.0,107250.0,0.43930123]
[1750060076710,1.08856998,107260.0,107250.0,0.43930123]
[1750060077230,1.08856998,107260.0,107250.0,0.40920131]
[1750060077231,1.09789294,107260.0,107250.0,0.40920131]
[1750060077454,1.08856998,107260.0,107250.0,0.41852471]
[1750060077692,1.11243379,107260.0,107250.0,0.2265906]
[1750060077913,1.29889711,107260.0,107250.0,0.35985434]
[1750060078186,1.32067441,107260.0,107250.0,0.3505306]
[1750060078403,1.32067441,107260.0,107250.0,0.35985434]
[1750060079312,1.32067441,107260.0,107250.0,0.1958906]
[1750060079549,1.32067441,107260.0,107250.0,0.3505306]
[1750060079796,1.32067441,107260.0,107250.0,0.35053069]
[1750060080033,1.32067441,107260.0,107250.0,0.37850192]
[1750060080270,1.32067441,107260.0,107250.0,0.36917826]
[1750060080473,1.13421161,107260.0,107250.0,0.37850192]
[1750060080692,1.13421161,107260.0,107250.0,0.36917826]
[1750060081543,1.13421161,107260.0,107250.0,0.37850192]
[1750060081755,1.10311161,107260.0,107250.0,0.36917826]
[1750060081964,1.10311161,107260.0,107250.0,0.37850183]
[1750060082180,1.09378856,107260.0,107250.0,0.38782531]
[1750060082804,1.1031117,107260.0,107250.0,0.37850192]
[1750060083265,0.72036231,107260.0,107250.0,0.37850192]
[1750060083486,1.1031117,107260.0,107250.0,0.37850192]
[1750060083694,1.10311161,107260.0,107250.0,0.38782549]
[1750060083898,1.10311161,107260.0,107250.0,0.37850192]
[1750060084112,1.10311161,107260.0,107250.0,0.38782505]
[1750060084776,1.28957441,107260.0,107250.0,0.18656677]
[1750060084988,1.10311161,107260.0,107250.0,0.36913817]
[1750060085432,1.11243475,107260.0,107250.0,0.36913817]
[1750060085900,1.11243475,107260.0,107250.0,0.37846174]
[1750060086093,1.11243475,107260.0,107250.0,0.36913817]
[1750060086219,1.11243475,107260.0,107250.0,0.35981451]
[1750060086440,1.11243475,107260.0,107250.0,0.36913817]
[1750060086864,0.77263475,107260.0,107250.0,0.36913817]
[1750060087455,0.77263475,107260.0,107250.0,0.35981451]
[1750060088915,1.11263475,107260.0,107250.0,0.35981451]
[1750060089374,1.29909755,107260.0,107250.0,0.35981469]
[1750060089578,1.32167476,107260.0,107250.0,0.17329451]
[1750060089786,1.32167476,107260.0,107250.0,0.15464659]
[1750060090001,1.32167476,107260.0,107250.0,0.16397059]
[1750060090212,1.32167476,107260.0,107250.0,0.17329451]
[1750060090422,1.28977476,107260.0,107250.0,0.18261834]
[1750060090639,1.28977476,107260.0,107250.0,0.36909852]
[1750060090899,1.10331196,107260.0,107250.0,0.37842226]
[1750060091112,1.15152584,107260.0,107250.0,0.38774592]
[1750060091746,1.15152584,107260.0,107250.0,0.37842226]
[1750060091966,1.15152584,107260.0,107250.0,0.38774592]
[1750060092194,1.15152584,107260.0,107250.0,0.37842226]
[1750060092412,1.15152584,107260.0,107250.0,0.38774592]
[1750060093066,1.1422027,107260.0,107250.0,0.38774592]
[1750060093776,1.12355669,107260.0,107250.0,0.37842226]
[1750060093994,1.13287956,107260.0,107250.0,0.37842226]
[1750060094219,1.14220183,107260.0,107250.0,0.38774592]
[1750060094443,1.15152462,107260.0,107250.0,0.38774532]
[1750060099895,0.7685312,107260.0,107250.0,0.38774532]
[1750060101053,0.77785407,107260.0,107250.0,0.38774532]
[1750060101401,0.77785407,107260.0,107250.0,0.3877454]
[1750060102499,1.11785407,107260.0,107250.0,0.38774488]
[1750060102720,1.11785407,107260.0,107250.0,0.37842148]
[1750060102937,1.11785407,107260.0,107250.0,0.38774505]
[1750060103162,1.11785407,107260.0,107250.0,0.369098]
[1750060103386,1.5949588,107260.0,107250.0,0.35973434]
[1750060103575,1.90986336,107260.0,107250.0,0.15460659]
[1750060103851,1.89121787,107260.0,107250.0,0.16393059]
[1750060104480,1.89121787,107260.0,107250.0,0.17325451]
[1750060104906,1.89121787,107260.0,107250.0,0.36905843]
[1750060105753,1.70475507,107260.0,107250.0,0.37838209]
[1750060106152,1.70475507,107260.0,107250.0,0.36905843]
[1750060106761,1.70475507,107260.0,107250.0,0.38770566]
[1750060106996,1.70475507,107260.0,107250.0,0.37838209]
[1750060107211,1.71407821,107260.0,107250.0,0.36905843]
[1750060107424,1.71407821,107260.0,107250.0,0.37838209]
[1750060107810,1.67255507,107260.0,107250.0,0.37838209]
[1750060108432,1.67255507,107260.0,107250.0,0.38770557]
[1750060108641,1.67255411,107260.0,107250.0,0.38770497]
[1750060108849,1.20999084,107260.0,107250.0,0.38770497]
[1750060109072,1.20999084,107260.0,107250.0,0.41970497]
[1750060110171,1.21931363,107260.0,107250.0,0.41970497]
[1750060110805,1.21931363,107260.0,107250.0,0.38770497]
[1750060111298,1.21931363,107260.0,107250.0,0.42060497]
[1750060112446,1.21931363,107260.0,107250.0,0.41124157]
[1750060112665,1.22863659,107260.0,107250.0,0.42056497]
[1750060112934,1.22863659,107260.0,107250.0,0.41124157]
[1750060113370,1.09920823,107260.0,107250.0,0.42056497]
[1750060113590,1.10853093,107260.0,107250.0,0.42056497]
[1750060114080,1.09920823,107260.0,107250.0,0.42056497]
[1750060115700,1.10853093,107260.0,107250.0,0.42056497]
[1750060116725,1.10853093,107260.0,107250.0,0.38766497]
[1750060117105,1.10853093,107260.0,107250.0,0.23318497]
[1750060117257,1.10853093,107260.0,107250.0,0.38762497]
[1750060117684,1.09920823,107260.0,107250.0,0.41882497]
[1750060118300,1.09920823,107260.0,107250.0,0.38762497]
[1750060118484,1.10853102,107260.0,107250.0,0.38762497]
[1750060120906,1.09920823,107260.0,107250.0,0.38762497]
[1750060121118,1.09920823,107260.0,107250.0,0.41932497]
[1750060122552,1.09920823,107260.0,107250.0,0.38762497]
[1750060122690,1.10853102,107260.0,107250.0,0.38762497]
[1750060123824,1.14083102,107260.0,107250.0,0.38762497]
[1750060124310,1.10853102,107260.0,107250.0,0.38762497]
[1750060126360,1.10853102,107260.0,107250.0,0.37830157]
[1750060126591,1.10853102,107260.0,107250.0,0.38762497]
[1750060126817,1.11785407,107260.0,107250.0,0.37830157]
[1750060127034,1.11785398,107260.0,107250.0,0.37830157]
[1750060127438,1.10853102,107260.0,107250.0,0.38762497]
[1750060127732,1.10853102,107260.0,107250.0,0.23318497]
[1750060127957,1.10853102,107260.0,107250.0,0.38758497]
[1750060128159,1.11785398,107260.0,107250.0,0.37826157]
[1750060128453,1.11785398,107260.0,107250.0,0.37826166]
[1750060128669,1.11785398,107260.0,107250.0,0.38758506]
[1750060129202,1.10853102,107260.0,107250.0,0.38758506]
[1750060129578,1.11785398,107260.0,107250.0,0.38758506]
[1750060130109,1.11785398,107260.0,107250.0,0.38758514]
[1750060131567,1.06777102,107260.0,107250.0,0.45088462]
[1750060131760,1.11777389,107260.0,107250.0,0.44156122]
[1750060132055,1.1177738,107260.0,107250.0,0.41898462]
[1750060132191,1.1177738,107260.0,107250.0,0.40966122]
[1750060133485,1.12709685,107260.0,107250.0,0.40966122]
[1750060133624,1.1177738,107260.0,107250.0,0.40966122]
[1750060133823,1.1177738,107260.0,107250.0,0.41898462]
[1750060134136,1.1177738,107260.0,107250.0,0.37826122]
[1750060134484,1.1177738,107260.0,107250.0,0.38758462]
[1750060134810,1.1177738,107260.0,107250.0,0.37826122]
[1750060135217,1.12709676,107260.0,107250.0,0.37826122]
[1750060136667,1.12709676,107260.0,107250.0,0.36893774]
[1750060136967,1.12709676,107260.0,107250.0,0.37826122]
[1750060137262,1.12709676,107260.0,107250.0,0.36893774]
[1750060137755,1.11777441,107260.0,107250.0,0.20521451]
[1750060137967,1.14787441,107260.0,107250.0,0.35957451]
[1750060138167,1.15719755,107260.0,107250.0,0.35957451]
[1750060138499,1.15719755,107260.0,107250.0,0.36889817]
[1750060138669,1.14787441,107260.0,107250.0,0.36889817]
[1750060138919,1.15719746,107260.0,107250.0,0.36889817]
[1750060139349,1.12709746,107260.0,107250.0,0.36889817]
[1750060139858,1.12709746,107260.0,107250.0,0.37822174]
[1750060140060,1.12709746,107260.0,107250.0,0.36889817]
[1750060140273,1.73520092,107260.0,107250.0,0.35025077]
[1750060140469,1.32591495,107260.0,107250.0,0.2052146]
[1750060140680,1.32591495,107260.0,107250.0,0.3595746]
[1750060140903,1.32591495,107260.0,107250.0,0.36889834]
[1750060141085,1.33523809,107260.0,107250.0,0.36889834]
[1750060141240,1.33523809,107260.0,107250.0,0.3595746]
[1750060141470,1.33523809,107260.0,107250.0,0.378222]
[1750060141875,1.11777529,107260.0,107250.0,0.378222]
[1750060142060,1.11777529,107260.0,107250.0,0.38754557]
[1750060142283,1.11777529,107260.0,107250.0,0.378222]
[1750060142490,1.10845215,107260.0,107250.0,0.378222]
[1750060143338,1.11777529,107260.0,107250.0,0.378222]
[1750060143458,1.11777529,107260.0,107250.0,0.2052146]
[1750060143659,1.15077529,107260.0,107250.0,0.36885834]
[1750060144027,1.15077529,107260.0,107250.0,0.3595346]
[1750060144228,1.15077529,107260.0,107250.0,0.36885834]
[1750060144432,1.15077529,107260.0,107250.0,0.378182]
[1750060144634,1.11777529,107260.0,107250.0,0.378182]
[1750060145263,1.11777529,107260.0,107250.0,0.36885834]
[1750060145459,1.11777529,107260.0,107250.0,0.3595346]
[1750060145667,1.11777529,107260.0,107250.0,0.36885834]
[1750060146105,1.72587849,107260.0,107250.0,0.00941051]
[1750060146309,1.75777849,107260.0,107250.0,0.17305451]
[1750060147031,1.75777849,107260.0,107250.0,0.35953469]
[1750060147257,1.75777849,107260.0,107250.0,0.36885852]
[1750060148046,1.75777849,107260.0,107250.0,0.37818226]
[1750060149525,1.32681522,107260.0,107250.0,0.36885852]
[1750060149923,1.32681522,107260.0,107250.0,0.37818226]
[1750060150266,1.29491522,107260.0,107250.0,0.38750592]
[1750060150491,1.10845242,107260.0,107250.0,0.38750592]
[1750060150735,1.10845242,107260.0,107250.0,0.38746592]
[1750060151138,1.09912893,107260.0,107250.0,0.3874654]
[1750060151394,1.09912893,107260.0,107250.0,0.38746549]
[1750060151616,1.10845207,107260.0,107250.0,0.37814192]
[1750060151823,1.09912893,107260.0,107250.0,0.38746549]
[1750060152032,1.09912893,107260.0,107250.0,0.368818]
[1750060152240,1.09912893,107260.0,107250.0,0.37814157]
[1750060152452,1.10845207,107260.0,107250.0,0.37814157]
[1750060152659,1.08084936,107260.0,107250.0,0.37814157]
[1750060152882,1.13077232,107260.0,107250.0,0.38746505]
[1750060153099,1.13077232,107260.0,107250.0,0.37814157]
[1750060153629,1.14009546,107260.0,107250.0,0.368818]
[1750060154045,1.14009537,107260.0,107250.0,0.368818]
[1750060154289,1.14009052,107260.0,107250.0,0.37814157]
[1750060154615,1.14009052,107260.0,107250.0,0.368818]
[1750060154822,1.13076747,107260.0,107250.0,0.37814157]
[1750060155526,1.13076747,107260.0,107250.0,0.368818]
[1750060155852,1.14009061,107260.0,107250.0,0.368818]
[1750060156148,1.13076747,107260.0,107250.0,0.37814148]
[1750060156356,1.13076747,107260.0,107250.0,0.22386148]
[1750060156520,1.13076747,107260.0,107250.0,0.22386157]
[1750060157179,1.13076747,107260.0,107250.0,0.23318505]
[1750060157380,1.14009061,107260.0,107250.0,0.22386157]
[1750060157584,1.13076747,107260.0,107250.0,0.37814157]
[1750060157975,1.14009052,107260.0,107250.0,0.37814157]
[1750060158683,1.14009052,107260.0,107250.0,0.40844157]
[1750060158886,1.13076738,107260.0,107250.0,0.41776505]
[1750060159334,1.13076738,107260.0,107250.0,0.39911774]
[1750060159542,1.14009034,107260.0,107250.0,0.40844122]
[1750060159717,1.13076738,107260.0,107250.0,0.39911774]
[1750060159954,1.14009043,107260.0,107250.0,0.38979417]
[1750060160371,1.14941357,107260.0,107250.0,0.38979417]
[1750060160781,1.14009043,107260.0,107250.0,0.38979417]
[1750060160990,1.14009043,107260.0,107250.0,0.39911774]
[1750060161199,1.14009043,107260.0,107250.0,0.38979417]
[1750060162226,1.14009043,107260.0,107250.0,0.38047077]
[1750060162422,1.14009043,107260.0,107250.0,0.35949451]
[1750060162626,0.70912716,107260.0,107250.0,0.35949451]
[1750060162829,1.14009043,107260.0,107250.0,0.36881817]
[1750060163034,1.14009043,107260.0,107250.0,0.35949451]
[1750060164313,1.14009043,107260.0,107250.0,0.3594946]
[1750060164811,1.14009043,107260.0,107250.0,0.36881834]
[1750060165218,1.5710537,107260.0,107250.0,0.36881834]
[1750060165466,1.14009043,107260.0,107250.0,0.36881834]
[1750060165694,1.5710537,107260.0,107250.0,0.36881834]
[1750060165905,1.14009043,107260.0,107250.0,0.378142]
[1750060166215,1.14941357,107260.0,107250.0,0.378142]
[1750060167038,1.14941357,107260.0,107250.0,0.36881834]
[1750060167454,1.14941357,107260.0,107250.0,0.378142]
[1750060167907,1.14009043,107260.0,107250.0,0.378142]
[1750060168337,1.14009043,107260.0,107250.0,0.36881834]
[1750060168751,1.14941357,107260.0,107250.0,0.36881834]
[1750060169138,1.14941357,107260.0,107250.0,0.21453834]
[1750060169359,1.14941357,107260.0,107250.0,0.378062]
[1750060171797,1.14009113,107260.0,107250.0,0.36873834]
[1750060172241,1.14009113,107260.0,107250.0,0.3594146]
[1750060172443,1.14009113,107260.0,107250.0,0.36873834]
[1750060172732,1.14009113,107260.0,107250.0,0.378062]
[1750060173116,1.14009113,107260.0,107250.0,0.36873834]
[1750060173364,1.14009113,107260.0,107250.0,0.378062]
[1750060173681,1.14009113,107260.0,107250.0,0.36873834]
[1750060174237,1.14009113,107260.0,107250.0,0.3594146]
[1750060174665,1.14009113,107260.0,107250.0,0.36873834]
[1750060176124,1.91425424,107260.0,107250.0,8.659e-05]
[1750060176339,1.94224936,107260.0,107250.0,8.659e-05]
[1750060177692,2.03839858,107260.0,107250.0,8.659e-05]
[1750060178192,1.94224936,107260.0,107250.0,8.659e-05]
[1750060186400,1.99224936,107260.0,107250.0,8.659e-05]
[1750060186815,2.14636936,107260.0,107250.0,8.659e-05]
[1750060193346,2.11837424,107260.0,107250.0,8.659e-05]
[1750060193566,2.09597814,107260.0,107250.0,8.659e-05]
[1750060195114,2.24246922,107260.0,107250.0,8.659e-05]
[1750060196058,2.19212736,107260.0,107250.0,8.659e-05]
[1750060196452,2.21450175,107260.0,107250.0,8.659e-05]
[1750060196897,2.24246974,107260.0,107250.0,8.659e-05]
[1750060202467,1.02507398,107260.0,107250.0,8.659e-05]
[1750060202917,1.92752052,107260.0,107250.0,8.659e-05]
[1750060203576,1.88700052,107260.0,107250.0,8.659e-05]
[1750060203788,1.92752052,107260.0,107250.0,0.03218659]
[1750060205905,1.92752052,107260.0,107250.0,8.659e-05]
[1750060209555,2.08706974,107260.0,107250.0,8.659e-05]
[1750060209779,2.12436001,107260.0,107250.0,8.659e-05]
[1750060210485,2.09346001,107260.0,107250.0,8.659e-05]
[1750060217166,1.23153347,107260.0,107250.0,8.659e-05]
[1750060217419,1.96481079,107260.0,107250.0,8.659e-05]
[1750060219573,1.10288425,107260.0,107250.0,8.659e-05]
[1750060219775,1.96481079,107260.0,107250.0,8.659e-05]
[1750060221680,1.96473079,107260.0,107250.0,8.659e-05]
[1750060226855,1.99683079,107260.0,107250.0,8.659e-05]
[1750060227080,2.05271934,107260.0,107250.0,8.659e-05]
[1750060228442,2.20663934,107260.0,107250.0,8.659e-05]
[1750060229538,2.17453934,107260.0,107250.0,8.659e-05]
[1750060232193,2.02061934,107260.0,107250.0,8.659e-05]
[1750060237993,2.05071934,107260.0,107250.0,8.659e-05]
[1750060244649,2.02061934,107260.0,107250.0,8.659e-05]
[1750060244868,1.98332907,107260.0,107250.0,8.659e-05]
[1750060245083,1.98332907,107260.0,107250.0,0.03328659]
[1750060245577,2.02061934,107260.0,107250.0,0.03328659]
[1750060247296,1.98324907,107260.0,107250.0,0.03328659]
[1750060247501,2.02053934,107260.0,107250.0,0.06588659]
[1750060247691,1.98324907,107260.0,107250.0,0.06588659]
[1750060248130,1.98324907,107260.0,107250.0,0.03328659]
[1750060252281,2.02053934,107260.0,107250.0,0.03328659]
[1750060255516,2.02053934,107260.0,107250.0,8.659e-05]
[1750060257800,2.02060682,107260.0,107250.0,8.659e-05]
[1750060259146,2.17440682,107260.0,107250.0,8.659e-05]
[1750060261244,2.02060682,107260.0,107250.0,8.659e-05]
[1750060262939,2.02060678,107260.0,107250.0,8.659e-05]
[1750060263962,1.15868024,107260.0,107250.0,8.659e-05]
[1750060264175,2.02060678,107260.0,107250.0,8.659e-05]
[1750060272738,2.02060678,107260.0,107250.0,0.03198659]
[1750060273159,1.96471823,107260.0,107250.0,0.03198659]
[1750060274422,2.39606292,107260.0,107250.0,0.03198659]
[1750060276483,2.39598292,107260.0,107250.0,0.03198659]
[1750060277090,2.35869265,107260.0,107250.0,0.03198659]
[1750060277230,2.39598292,107260.0,107250.0,0.03198659]
[1750060277634,2.45484187,107260.0,107250.0,0.03198659]
[1750060278208,2.49213214,107260.0,107250.0,0.03198659]
[1750060279013,1.69524337,107260.0,107250.0,0.26961451]
[1750060279150,1.69524328,107260.0,107250.0,0.27893817]
[1750060279715,1.70456633,107260.0,107250.0,0.27893834]
[1750060280149,1.70456633,107260.0,107250.0,0.288262]
[1750060280596,1.70456624,107260.0,107250.0,0.288262]
[1750060280798,1.70456624,107260.0,107250.0,0.29758557]
[1750060280968,1.69524389,107260.0,107250.0,0.27893834]
[1750060281190,1.69524389,107260.0,107250.0,0.288262]
[1750060281393,1.69524389,107260.0,107250.0,0.29758557]
[1750060281824,2.1263343,107260.0,107250.0,0.27893834]
[1750060282024,2.1263343,107260.0,107250.0,0.288262]
[1750060282239,0.83306307,107260.0,107250.0,0.27893834]
[1750060282438,1.69524389,107260.0,107250.0,0.27893834]
[1750060282578,1.69524389,107260.0,107250.0,0.288262]
[1750060282788,2.31801534,107260.0,107250.0,0.06448659]
[1750060283007,2.31801534,107260.0,107250.0,8.659e-05]
[1750060283008,2.30869247,107260.0,107250.0,8.659e-05]
[1750060283321,2.30869247,107260.0,107250.0,0.03318659]
[1750060284543,2.30867424,107260.0,107250.0,0.03318659]
[1750060285011,2.78976465,107260.0,107250.0,8.659e-05]
[1750060285217,2.88965492,107260.0,107250.0,8.659e-05]
[1750060285449,2.98580414,107260.0,107250.0,8.659e-05]
[1750060285896,3.13948414,107260.0,107250.0,8.659e-05]
[1750060286124,2.79948414,107260.0,107250.0,8.659e-05]
[1750060286349,0.22379549,107240.0,107230.0,0.0635]
[1750060286578,1.51706672,107240.0,107230.0,0.07296711]
[1750060286802,1.53013889,107240.0,107230.0,0.06364137]
[1750060287018,1.53013889,107240.0,107230.0,0.07296711]
[1750060287234,1.53013889,107240.0,107230.0,0.06364137]
[1750060287499,1.6409215,107240.0,107230.0,0.06364137]
[1750060287706,1.63159715,107240.0,107230.0,0.03204137]
[1750060287923,1.63159715,107240.0,107230.0,0.03404137]
[1750060288361,1.97159715,107240.0,107230.0,0.03404137]
[1750060288583,1.97159715,107240.0,107230.0,0.03504137]
[1750060288798,1.99959338,107240.0,107230.0,0.00314137]
[1750060289269,1.97159715,107240.0,107230.0,0.00314137]
[1750060289478,1.99960537,107240.0,107230.0,0.00214137]
[1750060289930,1.99960537,107240.0,107230.0,0.0019675]
[1750060290592,0.19584053,107230.0,107220.0,0.29087857]
[1750060290825,0.49934668,107230.0,107220.0,0.3002051]
[1750060291050,0.49002111,107230.0,107220.0,0.48673746]
[1750060291295,0.49934677,107230.0,107220.0,0.48669746]
[1750060291774,0.49934677,107230.0,107220.0,0.50535008]
[1750060291985,0.49984961,107230.0,107220.0,0.50935017]
[1750060292188,0.49984909,107230.0,107220.0,0.51867626]
[1750060292323,0.50917449,107230.0,107220.0,0.51867626]
[1750060292732,0.50917449,107230.0,107220.0,0.51967626]
[1750060292932,0.50917449,107230.0,107220.0,0.52900226]
[1750060294122,0.50917449,107230.0,107220.0,0.51967626]
[1750060294290,0.50917449,107230.0,107220.0,0.45380369]
[1750060294653,0.50917449,107230.0,107220.0,0.44447769]
[1750060294807,0.51850006,107230.0,107220.0,0.44447769]
[1750060295149,0.51850006,107230.0,107220.0,0.44447778]
[1750060295567,0.52782572,107230.0,107220.0,0.44447778]
[1750060296078,0.51850006,107230.0,107220.0,0.44447778]
[1750060296233,0.51850006,107230.0,107220.0,0.45380387]
[1750060296646,0.51850006,107230.0,107220.0,0.44447778]
[1750060296913,0.51850006,107230.0,107220.0,0.45380387]
[1750060297066,0.51850006,107230.0,107220.0,0.44447778]
[1750060297522,0.52782572,107230.0,107220.0,0.4351516]
[1750060297650,0.52782572,107230.0,107220.0,0.44447778]
[1750060298083,0.52782572,107230.0,107220.0,0.4351516]
[1750060298275,0.52782572,107230.0,107220.0,0.44447778]
[1750060298906,0.95891691,107230.0,107220.0,0.4351516]
[1750060299485,0.95891691,107230.0,107220.0,0.44447778]
[1750060299624,0.95891691,107230.0,107220.0,0.4351516]
[1750060299810,0.94959117,107230.0,107220.0,0.4351516]
[1750060300532,0.95891691,107230.0,107220.0,0.4351516]
[1750060300753,1.13610665,107230.0,107220.0,0.23095889]
[1750060300976,1.12678125,107230.0,107220.0,0.18874]
[1750060301335,1.11745568,107230.0,107220.0,0.18874]
[1750060302019,1.11745568,107230.0,107220.0,0.18774]
[1750060302380,1.11845568,107230.0,107220.0,0.18374]
[1750060302590,1.11845568,107230.0,107220.0,0.19306661]
[1750060303743,1.11845568,107230.0,107220.0,0.18374]
[1750060303948,1.11845568,107230.0,107220.0,0.19306661]
[1750060304156,1.11845568,107230.0,107220.0,0.18374]
[1750060304532,1.11845568,107230.0,107220.0,0.19306661]
[1750060305567,1.11845568,107230.0,107220.0,0.18374]
[1750060306216,0.34,107220.0,107210.0,0.2286759]
[1750060306425,1.20218082,107220.0,107210.0,0.4129759]
[1750060306626,1.22083301,107220.0,107210.0,0.42230277]
[1750060307576,1.23948545,107220.0,107210.0,0.44295713]
[1750060307896,1.23948545,107220.0,107210.0,0.43363026]
[1750060308116,1.24881189,107220.0,107210.0,0.43363026]
[1750060308343,1.2301591,107220.0,107210.0,0.44295713]
[1750060309090,1.22083283,107220.0,107210.0,0.44295713]
[1750060309291,1.2301591,107220.0,107210.0,0.44295713]
[1750060310686,1.2301591,107220.0,107210.0,0.28935713]
[1750060310892,1.23948545,107220.0,107210.0,0.43363026]
[1750060311066,1.23948545,107220.0,107210.0,0.44295713]
[1750060311592,1.23948545,107220.0,107210.0,0.43363026]
[1750060311794,1.23948545,107220.0,107210.0,0.44295713]
[1750060314064,1.23948545,107220.0,107210.0,0.43363026]
[1750060314272,1.24881189,107220.0,107210.0,0.43363026]
[1750060314883,1.24881189,107220.0,107210.0,0.44295713]
[1750060315089,1.43534425,107220.0,107210.0,0.0655]
[1750060315264,1.42601877,107220.0,107210.0,0.2049547]
[1750060315465,1.42601877,107220.0,107210.0,0.39150446]
[1750060315665,1.42601877,107220.0,107210.0,0.38217724]
[1750060316033,1.42601877,107220.0,107210.0,0.39150446]
[1750060316235,1.24881302,107220.0,107210.0,0.4008316]
[1750060316390,1.42601911,107220.0,107210.0,0.39150455]
[1750060317185,1.44841186,107220.0,107210.0,0.39150464]
[1750060317386,1.44841186,107220.0,107210.0,0.23790464]
[1750060317601,1.44841186,107220.0,107210.0,0.39150464]
[1750060317775,1.44841186,107220.0,107210.0,0.23790464]
[1750060318018,1.44841186,107220.0,107210.0,0.24723195]
[1750060318236,1.44841186,107220.0,107210.0,0.40083195]
[1750060318446,1.44841186,107220.0,107210.0,0.24723195]
[1750060318659,0.58623104,107220.0,107210.0,0.41011917]
[1750060318876,1.44841186,107220.0,107210.0,0.40079195]
[1750060319092,1.43908551,107220.0,107210.0,0.39146464]
[1750060319297,1.41669276,107220.0,107210.0,0.40079195]
[1750060319968,1.41669276,107220.0,107210.0,0.41011917]
[1750060320254,1.41669276,107220.0,107210.0,0.40079195]
[1750060320481,1.42975691,107220.0,107210.0,0.19558748]
[1750060320699,1.42975691,107220.0,107210.0,0.16488748]
[1750060321643,1.42975691,107220.0,107210.0,0.15556]
[1750060321886,1.42043038,107220.0,107210.0,0.002]
[1750060322141,1.42043038,107220.0,107210.0,0.15556]
[1750060322142,1.51667214,107220.0,107210.0,0.15556]
[1750060322376,1.50734553,107220.0,107210.0,0.15556]
[1750060322596,1.53964553,107220.0,107210.0,0.15556]
[1750060323545,1.53964553,107220.0,107210.0,0.15547302]
[1750060324959,1.55418638,107220.0,107210.0,0.00191302]
[1750060325178,1.53179579,107220.0,107210.0,0.15547302]
[1750060325627,1.53179579,107220.0,107210.0,0.15538614]
[1750060325868,1.53179579,107220.0,107210.0,0.00182614]
[1750060325869,1.9628862,107220.0,107210.0,0.00182614]
[1750060326099,2.0156742,107220.0,107210.0,0.00182614]
[1750060328725,1.9852742,107220.0,107210.0,0.00182614]
[1750060332023,2.01136414,107220.0,107210.0,0.00182614]
[1750060332443,1.9852742,107220.0,107210.0,0.00182614]
[1750060333086,2.0162742,107220.0,107210.0,0.00182614]
[1750060333985,0.72300297,107220.0,107210.0,0.00182614]
[1750060334197,1.9852742,107220.0,107210.0,0.00182614]
[1750060340279,1.9529742,107220.0,107210.0,0.00182614]
[1750060340525,0.42120001,107220.0,107210.0,0.23993035]
[1750060340736,0.42120001,107220.0,107210.0,0.28235722]
[1750060340737,0.022388,107220.0,107210.0,0.28235722]
[1750060340946,1.17130082,107220.0,107210.0,0.28235722]
[1750060343186,1.17130082,107220.0,107210.0,0.43587722]
[1750060344030,1.18062665,107220.0,107210.0,0.43587722]
[1750060344835,1.17130082,107220.0,107210.0,0.43587722]
[1750060345077,0.74966941,107220.0,107210.0,0.43587722]
[1750060345515,1.18089274,107220.0,107210.0,0.43587722]
[1750060346012,1.17156682,107220.0,107210.0,0.43587722]
[1750060346284,1.18089265,107220.0,107210.0,0.43587722]
[1750060347655,1.19021865,107220.0,107210.0,0.43587722]
[1750060348141,1.19021865,107220.0,107210.0,0.28235722]
[1750060348396,1.19021865,107220.0,107210.0,0.43583722]
[1750060348851,1.19021857,107220.0,107210.0,0.43583722]
[1750060349064,1.19954466,107220.0,107210.0,0.28235722]
[1750060349267,1.19021857,107220.0,107210.0,0.43583722]
[1750060349457,1.20887084,107220.0,107210.0,0.28235722]
[1750060349677,1.20887136,107220.0,107210.0,0.23993044]
[1750060349889,1.23126129,107220.0,107210.0,0.24925749]
[1750060350171,1.24058782,107220.0,107210.0,0.2306033]
[1750060350384,1.24058782,107220.0,107210.0,0.3840833]
[1750060350586,1.41779426,107220.0,107210.0,0.3934106]
[1750060351112,1.2312619,107220.0,107210.0,0.40273756]
[1750060351341,1.22193537,107220.0,107210.0,0.40273756]
[1750060351559,1.22193537,107220.0,107210.0,0.3934106]
[1750060351801,1.23126181,107220.0,107210.0,0.40273756]
[1750060352207,1.21260902,107220.0,107210.0,0.41206443]
[1750060352649,1.22193546,107220.0,107210.0,0.40273756]
[1750060353634,1.22193546,107220.0,107210.0,0.40273765]
[1750060353855,1.22193546,107220.0,107210.0,0.41206461]
[1750060354839,1.18177546,107220.0,107210.0,0.41206461]
[1750060355050,1.22193546,107220.0,107210.0,0.41206461]
[1750060357077,1.22193546,107220.0,107210.0,0.40273765]
[1750060357300,1.22193546,107220.0,107210.0,0.41206461]
[1750060357529,1.22193537,107220.0,107210.0,0.41206461]
[1750060358027,1.2312619,107220.0,107210.0,0.24925765]
[1750060358253,1.2312619,107220.0,107210.0,0.40269765]
[1750060358467,1.2312619,107220.0,107210.0,0.41202461]
[1750060358701,1.41779426,107220.0,107210.0,0.20703069]
[1750060358942,1.44779426,107220.0,107210.0,0.36979783]
[1750060359135,1.2612619,107220.0,107210.0,0.36979791]
[1750060359386,1.2612619,107220.0,107210.0,0.37912496]
[1750060359607,1.2612619,107220.0,107210.0,0.3884521]
[1750060359873,1.22193537,107220.0,107210.0,0.38845158]
[1750060360371,1.22193537,107220.0,107210.0,0.37912462]
[1750060360599,1.22193537,107220.0,107210.0,0.38845158]
[1750060361051,1.21260902,107220.0,107210.0,0.42045114]
[1750060361382,1.21260902,107220.0,107210.0,0.26701114]
[1750060361649,1.21260902,107220.0,107210.0,0.42045114]
[1750060361891,1.19395675,107220.0,107210.0,0.42045114]
[1750060362118,1.19021883,107220.0,107210.0,0.42045114]
[1750060362416,1.18089274,107220.0,107210.0,0.42045114]
[1750060362624,1.19021883,107220.0,107210.0,0.42045114]
[1750060363209,1.22193845,107220.0,107210.0,0.42045114]
[1750060363439,1.20328609,107220.0,107210.0,0.42045114]
[1750060363660,1.20328609,107220.0,107210.0,0.45325114]
[1750060363883,1.19396017,107220.0,107210.0,0.45325114]
[1750060364105,0.74034341,107220.0,107210.0,0.45325114]